[Event "Titled Tuesday Blitz August 09 Late 2022"]
[White "Yurovskykh, Oleksandr"]
[Black "Reprintsev, Alexander"]
[WhiteFideId "14134020"]
[BlackFideId "14100541"]
[WhiteElo "2292"]
[BlackElo "2108"]
[Result "1/2-1/2"]
[Round "11"]
[TimeControl "180+1"]
[Date "2022.08.09"]
[WhiteClock "0:01:06"]
[BlackClock "0:00:47"]

1. d4 {[%clk 0:02:57]}  d5 {[%clk 0:02:57]} 2. Bf4 {[%clk 0:02:56]}  Nf6 {[%clk 0:02:56]} 3. e3 {[%clk 0:02:57]}  c5 {[%clk 0:02:55]} 4. c3 {[%clk 0:02:58]}  Qb6 {[%clk 0:02:55]} 5. Qb3 {[%clk 0:02:57]}  c4 {[%clk 0:02:55]} 6. Qc2 {[%clk 0:02:58]}  g6 {[%clk 0:02:55]} 7. Nd2 {[%clk 0:02:55]}  Bf5 {[%clk 0:02:52]} 8. Qc1 {[%clk 0:02:55]}  Nc6 {[%clk 0:02:45]} 9. Ngf3 {[%clk 0:02:54]}  Nd7 {[%clk 0:02:44]} 10. Be2 {[%clk 0:02:47]}  Bg7 {[%clk 0:02:43]} 11. O-O {[%clk 0:02:47]}  e5 {[%clk 0:02:43]} 12. dxe5 {[%clk 0:02:47]}  Ndxe5 {[%clk 0:02:43]} 13. Nxe5 {[%clk 0:02:45]}  Nxe5 {[%clk 0:02:43]} 14. Bxe5 {[%clk 0:02:46]}  Bxe5 {[%clk 0:02:43]} 15. Nf3 {[%clk 0:02:46]}  Bf6 {[%clk 0:02:41]} 16. Nd4 {[%clk 0:02:46]}  Be4 {[%clk 0:02:13]} 17. f3 {[%clk 0:02:42]}  Bxd4 {[%clk 0:02:11]} 18. exd4 {[%clk 0:02:32]}  Bf5 {[%clk 0:02:11]} 19. Re1 {[%clk 0:02:26]}  O-O {[%clk 0:02:10]} 20. Qd2 {[%clk 0:02:26]}  Rfe8 {[%clk 0:02:09]} 21. Bf1 {[%clk 0:02:27]}  f6 {[%clk 0:01:58]} 22. Kf2 {[%clk 0:02:24]}  Kf7 {[%clk 0:01:57]} 23. g3 {[%clk 0:02:21]}  g5 {[%clk 0:01:56]} 24. Rxe8 {[%clk 0:02:11]}  Rxe8 {[%clk 0:01:55]} 25. Re1 {[%clk 0:02:12]}  Rxe1 {[%clk 0:01:55]} 26. Kxe1 {[%clk 0:02:13]}  Bb1 {[%clk 0:01:50]} 27. a3 {[%clk 0:02:12]}  h6 {[%clk 0:01:46]} 28. Bh3 {[%clk 0:02:01]}  Bd3 {[%clk 0:01:43]} 29. Kf2 {[%clk 0:02:00]}  f5 {[%clk 0:01:36]} 30. Bg2 {[%clk 0:01:49]}  Kf6 {[%clk 0:01:33]} 31. h4 {[%clk 0:01:48]}  Qd6 {[%clk 0:01:30]} 32. hxg5+ {[%clk 0:01:48]}  hxg5 {[%clk 0:01:31]} 33. Qe1 {[%clk 0:01:44]}  f4 {[%clk 0:01:26]} 34. gxf4 {[%clk 0:01:30]}  Qxf4 {[%clk 0:01:26]} 35. Qe3 {[%clk 0:01:27]}  Bf5 {[%clk 0:01:03]} 36. Qxf4 {[%clk 0:01:06]}  gxf4 {[%clk 0:01:02]} 37. Bf1 {[%clk 0:01:07]}  Kg5 {[%clk 0:01:02]} 38. Be2 {[%clk 0:01:06]}  Kh4 {[%clk 0:01:02]} 39. Bd1 {[%clk 0:01:06]}  Bd7 {[%clk 0:00:49]} 40. Bc2 {[%clk 0:01:06]}  Kg5 {[%clk 0:00:47]} 41. Bh7 {[%clk 0:01:06]}  Be6 {[%clk 0:00:47]} 1/2-1/2